Workbook

Sheet Clubs (hidden)
A1: N°Club | B1: Club
A2: 1004 | B2: Fidèles Sud Loire
A3: 1015 | B3: Boulistes Avrillé
A4: 1016 | B4: La boule Angevine
A5: 1025 | B5: Les Amis de la Pétanque Trélazéenne
A6: 1045 | B6: ASPTT Angers Pétanque
A7: 1119 | B7: Intrépide d'Angers
A8: 1198 | B8: Club Angevin Amicale Laïque J. ferry
A9: 1212 | B9: Pétanque Club Empiré
A10: 1249 | B10: Pétanque Club Soulaire et Bourg
A11: 1250 | B11: La Rafle d'Angers
A12: 1254 | B12: SC Beaucouzé Pétanque
A13: 1257 | B13: Pétanque Saint Jean - Saint Martin
A14: 1266 | B14: Liberté Pétanque St-Melaine / Aubance
A15: 1269 | B15: Ecouflant Pétanque Club
A16: 1274 | B16: Pétanque Sylvanaise
A17: 1275 | B17: CE Pétanque les Ponts de Cé
A18: 1280 | B18: USAC Angers
A19: 2008 | B19: Pétanque Soucelloise
A20: 2049 | B20: Sarrigné Plessis Pétanque Club
A21: 2076 | B21: Durtal Pétanque Club
A22: 2078 | B22: Pétanque Beaufortaise
A23: 2080 | B23: Cochonnet Mazéais
A24: 2148 | B24: Soleil Pétanque de Baugé
A25: 2160 | B25: Pétanque Brainoise
A26: 2223 | B26: Pellouailles les Boules
A27: 2244 | B27: Pétanque Tiercéenne
A28: 2264 | B28: Pétanque Club Daumeray - Morannes
A29: 2270 | B29: E.S. Jarzé Pétanque
A30: 3002 | B30: Fanny Club Villedieu la Blouère
A31: 3017 | B31: Energie Pétanque le May sur Evre
A32: 3040 | B32: Montjean Pétanque
A33: 3042 | B33: Chemillé Pétanque
A34: 3051 | B34: Union Pétanquaise Saint Georges sur Loire
A35: 3101 | B35: Espetven Pétanque Saint Macaire
A36: 3102 | B36: ASPTT Cholet Pétanque
A37: 3121 | B37: ASEC Pétanque La Pommeraye
A38: 3127 | B38: Boule d'Or Montlimartoise
A39: 3128 | B39: Cholet pétanque club
A40: 3129 | B40: Saint Martin Sports Beaupréau
A41: 3133 | B41: Saint Michel Pétanque La Poitevinière
A42: 3149 | B42: CAEB Cholet Pétanque
A43: 3169 | B43: Pétanque Saint Légeoise
A44: 3186 | B44: En Avant La Tessoualle Pétanque
A45: 3209 | B45: NDC Pétanque La Jubaudière
A46: 3220 | B46: Avenir Pétanque Trémentines
A47: 3226 | B47: Jallais Pétanque Club
A48: 3255 | B48: Verger Pétanque Club Cholet
A49: 3256 | B49: ES Girardière pétanque de Cholet
A50: 3261 | B50: Pétanque Club andrezé
A51: 3268 | B51: Pétanque Club de Nuaillé
A52: 3279 | B52: Les Amis de la Pétanque Chemilloise
A53: 3280 | B53: Orée d'Anjou pétanque
A54: 4094 | B54: C.S.A. Allonnes Pétanque
A55: 4112 | B55: Pétanque Club Paul Biet longué
A56: 4131 | B56: Union Clémentaise Pétanque
A57: 4150 | B57: Avant Garde Pétanque Vivy
A58: 4202 | B58: Pétanque club Villebernier
A59: 4240 | B59: Gennes Pétanque
A60: 4247 | B60: La Triplette Montreuillaise
A61: 4263 | B61: Racing Club Doué Pétanque
A62: 4264 | B62: Amicale du Carreau saumurois
A63: 4265 | B63: Rosiers Pétanque Gennes Val de Loire
A64: 5032 | B64: La Pétanque Noyantaise
A65: 5066 | B65: Lambertois petanque Club
A66: 5083 | B66: E.S.S.H.A Section pétanque
A67: 5144 | B67: Les Amis de La Pétanque Bécon les granits
A68: 5251 | B68: Société Omnisport Candéenne de Pétanque
A69: 5273 | B69: SPC Bouillé - Bel Air
A70: 5278 | B70: Le Carreau Membrollais

Sheet Catégories (hidden)
A1: Année | B1: Benjamin | C1: Minime | D1: Cadet | E1: Juniors | G1: Séniors | I1: Vétérans | L1: Année | M1: Benjamin | N1: Minime | Q1: Cadet | T1: Juniors | W1: Séniors | Y1: Vétérans
A2: 2017 | B2: 2008 | C2: 2005 - 2006 - 2007 | D2: 2002 - 2003 - 2004 | E2: 2000 | F2: 2001 | G2: 1958 | H2: 1999 | I2: 1957 | L2: 2017 | M2: 2008 | N2: 2005 | O2: 2006 | P2: 2007 | Q2: 2002 | R2: 2003 | S2: 2004 | T2: 2000 | V2: 2001 | W2: 1958 | X2: 1999 | Y2: 1957
A3: 2018 | B3: 2009 | C3: 2006 - 2007 - 2008 | D3: 2003 - 2004 - 2005 | E3: 2001 | F3: 2002 | G3: 1959 | H3: 2000 | I3: 1958 | L3: 2018 | M3: 2009 | N3: 2006 | O3: 2007 | P3: 2008 | Q3: 2003 | R3: 2004 | S3: 2005 | T3: 2001 | V3: 2002 | W3: 1959 | X3: 2000 | Y3: 1958
A4: 2019 | B4: 2010 | C4: 2007 - 2008 - 2009 | D4: 2004 - 2005 - 2006 | E4: 2002 | F4: 2003 | G4: 1960 | H4: 2001 | I4: 1959 | L4: 2019 | M4: 2010 | N4: 2007 | O4: 2008 | P4: 2009 | Q4: 2004 | R4: 2005 | S4: 2006 | T4: 2002 | V4: 2003 | W4: 1960 | X4: 2001 | Y4: 1959
A5: 2020 | B5: 2011 | C5: 2008 - 2009 - 2010 | D5: 2005 - 2006 - 2007 | E5: 2003 | F5: 2004 | G5: 1961 | H5: 2002 | I5: 1960 | L5: 2020 | M5: 2011 | N5: 2008 | O5: 2009 | P5: 2010 | Q5: 2005 | R5: 2006 | S5: 2007 | T5: 2003 | V5: 2004 | W5: 1961 | X5: 2002 | Y5: 1960
A6: 2021 | B6: 2013 | C6: 2010 - 2011 - 2012 | D6: 2007 - 2008 - 2009 | E6: 2004 | F6: 2006 | G6: 1962 | H6: 2003 | I6: 1961 | L6: 2021 | M6: 2013 | N6: 2010 | O6: 2011 | P6: 2012 | Q6: 2007 | R6: 2008 | S6: 2009 | T6: 2004 | V6: 2006 | W6: 1962 | X6: 2003 | Y6: 1961
A7: 2022 | B7: 2014 | C7: 2011 - 2012 - 2013 | D7: 2008 - 2009 - 2010 | E7: 2005 | F7: 2007 | G7: 1963 | H7: 2004 | I7: 1962 | L7: 2022 | M7: 2014 | N7: 2011 | O7: 2012 | P7: 2013 | Q7: 2008 | R7: 2009 | S7: 2010 | T7: 2005 | U7: 2006 | V7: 2007 | W7: 1963 | X7: 2004 | Y7: 1962
A8: 2023 | B8: 2015 | C8: 2012 - 2013 - 2014 | D8: 2009 - 2010 - 2011 | E8: 2006 | F8: 2008 | G8: 1964 | H8: 2005 | I8: 1963 | L8: 2023 | M8: 2015 | N8: 2012 | O8: 2013 | P8: 2014 | Q8: 2009 | R8: 2010 | S8: 2011 | T8: 2006 | U8: 2007 | V8: 2008 | W8: 1964 | X8: 2005 | Y8: 1963
A9: 2024 | B9: 2016 | C9: 2013 - 2014 - 2015 | D9: 2010 - 2011 - 2012 | E9: 2007 | F9: 2009 | G9: 1965 | H9: 2006 | I9: 1964 | L9: 2024 | M9: 2015 | N9: 2013 | O9: 2014 | P9: 2015 | Q9: 2010 | R9: 2011 | S9: 2012 | T9: 2007 | U9: 2008 | V9: 2009 | W9: 1965 | X9: 2006 | Y9: 1964
A10: 2025 | B10: 2016 | C10: 2013 - 2014 - 2015 | D10: 2010 - 2011 - 2012 | E10: 2008 | F10: 2009 | G10: 1966 | H10: 2007 | I10: 1965 | L10: 2025 | M10: 2016 | N10: 2013 | O10: 2014 | P10: 2015 | Q10: 2010 | R10: 2011 | S10: 2012 | T10: 2008 | U10: 2009 | V10: 2010 | W10: 1966 | X10: 2007 | Y10: 1965

Sheet Menu
A1: Fédération Française de Pétanque et jeu Provençal | J1: =B7-1 -> 2023
A2: Région des Pays de la Loire - Comité de Maine et Loire
A4: N°Club | C4: Club | D4: =IF(B4="","",VLOOKUP(B4,Clubs!A1:B72,2,0)) -> 
B7: 2024
B9: Mode d'emploi | D9: Mode d'emploi
B10: Document unique de licences | D10: Nouveau document fédéral à utiliser pour types de demandes de licences
D11: CREATION - RENOUVELLEMENT-DUPLICATA - MUTATION
D12: Il est impératif de cocher la bonne case
B13: Vérification des Licences | D13: ="Feuille récapitulative des prises de licence s"&B7&", pour les licences qui passent dans le lecteur" -> Feuille récapitulative des prises de licence s2024, pour les licences qui passent dans le lecteur
B14: Feuille Comptable | D14: Formulaire à joindre impérativement à toutes vos demandes de licences
B15: Correction d'erreur | D15: ="La correction intervient après une erreur manuscrite sur la licence "&B7&" ( Nom,Prénom, etc…)" -> La correction intervient après une erreur manuscrite sur la licence 2024 ( Nom,Prénom, etc…)

Sheet Mode d'emploi
A2: ="Comment établir une licence "&Menu!B7 -> Comment établir une licence 2024
A4: CRÉATION DE LICENCE
B5: Nouvelle licence uniquement (ne jamais avoir été licencié)
B6: Renseignez toutes les lignes
B7: Pour les clubs ou les personnes qui remplissent le formulaire en lettres manuscrites, écrivez en majuscules, de façon claire et compréhensible
B8: Formulaire à signer obligatoirement par le licencié en 2 exemplaires (un pour le club et un pour le comité)
B9: Joindre obligatoirement une photo
B10: Joindre la copie de la carte d'identité ou livret de famille
B11: Demander la carte d'identité ou livret de famille (jeunes) pour établir la 1ère demande de licence
B12: pour les nouveaux joueurs (ses), demander si ils ont joué dans le département ou hors département.
B13: pour un étranger, demander la carte de séjour.
B14: Pour toute demande de nouvelle licence, joindre obligatoirement une photo récente non estampillée avec le NOM, Prénom et N° club inscrits au dos de celle-ci (ne pas agrafer la photo)
B15: CE FORMULAIRE EST À TRANSMETTRE AU COMITÉ AVEC LA FEUILLE COMPTABLE ACCOMPAGNÉE DU RÈGLEMENT
A17: RENOUVELLEMENT DE LICENCE
B18: Uniquement pour les licences qui passent dans le lecteur
B19: Renseignez toutes les lignes
B20: Pour les clubs ou les personnes qui remplissent le formulaire en lettres manuscrites, écrivez en majuscules, de façon claire et compréhensible
B21: Formulaire à remplir en 2exemplaires et à signer obligatoirement par le licencié (un pour le club et un pour le comité)
B22: CE FORMULAIRE EST À TRANSMETTRE AU COMITÉ AVEC LA FEUILLE COMPTABLE ACCOMPAGNÉE DU RÈGLEMENT
A24: DUPLICATA DE LICENCE (Demande de nouvelle carte)
B25: Uniquement pour les licences qui ne passent pas sur le lecteur, les licences perdues ou cassées
B26: Renseignez toutes les lignes
B27: Formulaire à signer obligatoirement par le licencié en 2 exemplaires (un pour le club et un pour le comité)
B28: Pour les clubs ou les personnes qui remplissent le formulaire en lettres manuscrites, écrivez en majuscules, de façon claire et compréhensible
B29: respecter les catégories
B30: MUTATION
B32: Pour les joueurs mutés vous devrez obligatoirement joindre à ce formulaire une demande de mutation, même si ce joueur n'a pas joué depuis plusieurs années. Si le joueur n'est pas en possession de ce document n'établissez pas de demande.
B33: A SAVOIR : Les demandes de mutations peuvent se faire tout au long de l'année.
B34: Formulaire à remplir en 2exemplaires et à signer obligatoirement par le licencié (un pour le club et un pour le comité)
B36: CE FORMULAIRE EST À TRANSMETTRE AU COMITÉ AVEC LA FEUILLE COMPTABLE ACCOMPAGNÉE DU RÈGLEMENT
A38: VÉRIFICATION DES LICENCES
B39: ="Feuille récapitulative de prise de licence "&Menu!B7 -> Feuille récapitulative de prise de licence 2024
B40: Dans ce formulaire, vous devez impérativement passer la licence sur le lecteur, aucune inscription manuscrite ne sera admise.
B41: Vous devez, en présence du licencié contrôler son adresse complète et sa date de naissance.
B42: Faites les corrections si nécessaire directement sur le formulaire en changeant la couleur de remplissage des cases ou il y a eu des changements
B43: Pour les joueurs mutés, la case club se modifiera automatiquement d'une autre couleur, vous devrez obligatoirement joindre à ce formulaire une demande de mutation pour tous ces joueurs mutés. Si le joueur n'est pas en possession de ce document, supprimez la ligne et n'établissez pas de demande.
B45: CE FORMULAIRE EST À TRANSMETTRE AU COMITÉ AVEC LA FEUILLE COMPTABLE ACCOMPAGNÉ DU RÈGLEMENT
A47: DEMANDE DE DUPLICATA
B48: Document à utiliser uniquement encours d'année quand le licencié a perdu ou cassé sa licence
A50: CORRECTION D'ERREUR
B51: ="la correction intervient après une erreur manuscrite sur la licence "&Menu!B7&" (Nom, prénom, etc…)" -> la correction intervient après une erreur manuscrite sur la licence 2024 (Nom, prénom, etc…)
A53: FEUILLE COMPTABLE
B54: Formulaire à joindre impérativement à toutes vos demandes de licences
B55: Il est IMPÉRATIF que ce formulaire soit rempli informatiquement et accompagné de votre règlement
B56: ATTENTION : Respectez scrupuleusement toutes les catégories. (Le montant total en dépend)
A58: LITIGES
B59: En cas du non-respect des critères cités ci-dessus ou la feuille comptable erronée ou complétée manuellement le dossier de demandes de licences ne sera pas traité et vous sera retourné à vos frais dans sa totalité

Sheet Demande de Carte (hidden)
A1: Fédération Française de Pétanque et Jeu Provençal
A2: Région des Pays de la Loire - Comité de Maine et Loire
A4: ="DEMANDE DE LICENCE "&Menu!B7 -> DEMANDE DE LICENCE 2024
A5: ATTENTION ! A compter de 2018 le coût supplémentaire pour une demande de carte perdue ou cassée est de 6 € sauf mutation
A6: N° de Club | B6: =Menu!$B$4 -> 0 | D6: Club | E6: =IF(B6=0,"",VLOOKUP(B6,Clubs!A1:B72,2,0)) -> 
A8: ="N° du Club en "&Menu!J1 -> N° du Club en 2023 | E8: ="Fournir OBLIGATOIREMENT une mutation si il y un changement de club en "&Menu!B7 -> Fournir OBLIGATOIREMENT une mutation si il y un changement de club en 2024
C11: Pour les cartes cassées, joindre licence
A13: N° licence
A15: NOM | E15: Prénom
A17: Adresse
A19: Code Postal | D19: Ville
E21: Catégorie
A23: Email
A25: Téléphone Fixe | D25: Portable
E26: Date du Certificat Médical
B27: Je fournis une PHOTO D’IDENTITE et j’accepte d’être photographié pour que ma photo soit téléchargée sur le logiciel fédéral
B28: Le demandeur est susceptible de recevoir des offres commerciales de partenaires commerciaux de la F.F.P.J.P. En cas de refus , cocher la case
A30: ENCADRANTS et/ou DIRIGEANTS :
B31: Je suis Initiateur, Educateur ou Dirigeant (Président, Secrétaire Générale, Trésorier Général de club ou de Comité). La licence que je sollicite me permet d’accéder aux fonctions d’éducateur sportif et/ou de dirigeant d’Etablissement d’Activités Physiques et Sportives au sens des articles L. 212-1 et L. 322-1 du code du sport. A ce titre, les éléments constitutifs de mon identité seront transmis par la fédération aux services de l’Etat afin qu’un contrôle automatisé de mon honorabilité au sens de l’article L. 212-9 du code du sport soit effectué. J’ai compris et j’accepte ce contrôle.
B32: Je refuse ce contrôle et confirme mon intention de ne plus exercer les fonctions d’initiateur, d’éducateur et/ou de dirigeant.
A33: ATTESTATION SUR L'HONNEUR :
A34: Je certifie sur l'honneur l'exactitude des renseignements ci-dessus et atteste:
B35: Avoir été informé qu'avec la licence,j'adhère simultanément au contrat collectif d'assurance souscrit auprès de MMA Assurance,par la F.F.P.J.P. de son coût et de l'intérêt que présente la souscription d'un contrat de personnes couvrant des dommages corporels (non obligatoire)
A36: Si je ne souhaite pas souscrire cette assurance de personnes , cochez cette casse
B37: Avoir été informé de l'intérêt de souscrire les garanties optionnelles,accident corporels,correspondant à l'option "avantage" de la compagnie d'assurance MMA conformément à l'article L .321-4 du code du sport.
A39: AUTORISATION PARENTALE ( enfant mineur)
A40: Je soussigné (e)
A41: père/mère/tuteur légal,autorise le bénéficiaire de cette demande, identifié ci-dessus,à pratiquer la Pétanque et Jeu Provencal au sein de l'association,ainsi qu'à assurer son transport éventuel. En cas d'accident : personne à prévenir
A42: Personne à contacter en cas d’accident :
A43: Nom :
A44: Tél :
C48: Signature du joueur ou représentant légal
A51: Les données personnelles figurant sur ce document font l'objet de traitement informatique aux fins de traitements de gestion des licences. Elles sont destinées aux clubs,Comités,ligues et FFPJP et,sauf opposition ci-dessus,à nos partenaires.Conformément à la loi informatique et libertés du 6 Janvier 1978, le demandeur bénéfice d'un droit d'accès,de rectification et d'opposition aux informations qui le concerne. Le demandeur peut exercer ses droit et obtenir communication des informations en s'adressant au siège de la F.F.P.J.P - 13,rue Trigance - 13002 MARSEILLE courriel: ffpjp.siege@petanque.fr
E52: Signature du Président
E54: cachet du Club

Sheet Renouvellement de Licence (hidden)
A1: Fédération Française de Pétanque et Jeu Provencal
A2: Région des Pays de la Loire - Comité de Maine et Loire
A4: N° Club | B4: =Menu!$B$4 -> 0 | D4: Club | E4: =IF(B4=0,"",VLOOKUP(B4,Clubs!A1:C70,2,0)) -> 
A6: ="N° du Club en "&Menu!J1 -> N° du Club en 2023 | E6: ="Fournir OBLIGATOIREMENT une mutation si il y un changement de club en "&Menu!B7 -> Fournir OBLIGATOIREMENT une mutation si il y un changement de club en 2024
A8: ="RENOUVELLEMENT DE LICENCE SAISON "&Menu!B7 -> RENOUVELLEMENT DE LICENCE SAISON 2024
A10: Je,soussigne e) | B10: NOM | D10: Prénom | F10: N°licence
A12: Catégorie | F12: date du certificat médical
A14: Classification | C14: Elite | D14: Honneur | E14: Promotion
B16: Je fournis une PHOTO D’IDENTITE et j’accepte d’être photographié pour que ma photo soit téléchargée sur le logiciel fédéral
B17: Le demandeur est susceptible de recevoir des offres commerciales de partenaires commerciaux de la F.F.P.J.P. En cas de refus , cocher la case
A19: ENCADRANTS et/ou DIRIGEANTS :
B20: Je suis Initiateur, Educateur ou Dirigeant (Président, Secrétaire Générale, Trésorier Général de club ou de Comité). La licence que je sollicite me permet d’accéder aux fonctions d’éducateur sportif et/ou de dirigeant d’Etablissement d’Activités Physiques et Sportives au sens des articles L. 212-1 et L. 322-1 du code du sport. A ce titre, les éléments constitutifs de mon identité seront transmis par la fédération aux services de l’Etat afin qu’un contrôle automatisé de mon honorabilité au sens de l’article L. 212-9 du code du sport soit effectué. J’ai compris et j’accepte ce contrôle.
B21: Je refuse ce contrôle et confirme mon intention de ne plus exercer les fonctions d’initiateur, d’éducateur et/ou de dirigeant.
A22: ATTESTATION SUR L'HONNEUR :
A23: Je certifie sur l'honneur l'exactitude des renseignements ci-dessus et atteste:
B24: Avoir été informé qu'avec la licence,j'adhère simultanément au contrat collectif d'assurance souscrit auprès de MMA Assurance,par la F.F.P.J.P. de son coût et de l'intérêt que présente la souscription d'un contrat de personnes couvrant des dommages corporels (non obligatoire)
A25: Si je ne souhaite pas souscrire cette assurance de personnes , cochez cette casse
B26: Avoir été informé de l'intérêt de souscrire les garanties optionnelles,accident corporels,correspondant à l'option "avantage" de la compagnie d'assurance MMA conformément à l'article L .321-4 du code du sport.
A28: AUTORISATION PARENTALE ( enfant mineur)
A29: Je soussigné (e)
A30: père/mère/tuteur légal,autorise le bénéficiaire de cette demande, identifié ci-dessus,à pratiquer la Pétanque et Jeu Provencal au sein de l'association,ainsi qu'à assurer son transport éventuel. En cas d'accident : personne à prévenir
A31: Personne à contacter en cas d’accident :
A32: Nom :
A33: Tél :
D35: Signature du Joueur ou du représentant légal
A38: Les données personnelles figurant sur ce document font l'objet de traitement informatique aux fins de traitements de gestion des licences. Elles sont destinées aux clubs,Comités,ligues et FFPJP et,sauf opposition ci-dessus,à nos partenaires.Conformément à la loi informatique et libertés du 6 Janvier 1978, le demandeur bénéfice d'un droit d'accès,de rectification et d'opposition aux informations qui le concerne. Le demandeur peut exercer ses droit et obtenir communication des informations en s'adressant au siège de la F.F.P.J.P - 13,rue Trigance - 13002 MARSEILLE courriel: ffpjp.siege@petanque.fr
A39: catégories | C39: VÉTÉRANS | D39: =VLOOKUP(Menu!B7,base,9,0)&" et avant" -> 1964 et avant | F39: JUNIORS | G39: =VLOOKUP(Menu!B7,base,5,0)&" et "&VLOOKUP(Menu!B7,base,6,0) -> 2007 et 2009
F40: CADETS | G40: =VLOOKUP(Menu!B7,base,4,0) -> 2010 - 2011 - 2012
C41: SENIORS | D41: =VLOOKUP(Menu!B7,base,7,0)&" à "&VLOOKUP(Menu!B7,base,8,0) -> 1965 à 2006 | F41: MINIMES | G41: =VLOOKUP(Menu!B7,base,3,0) -> 2013 - 2014 - 2015
F42: BENJAMINS | G42: =VLOOKUP(Menu!B7,base,2,0)& " et après" -> 2016 et après
A44: Joindre une nouvelle photo pour le changement de catégorie
F46: signature du Président et cachet du club

Sheet DOCUMENT UNIQUE LICENCE a (hidden)
A1: Fédération Française de Pétanque et de Jeu Provençal
B2: COMITÉ DÉPARTEMENTAL de Maine et Loire | G2: SAISON
B3: CLUB : | C3: =Menu!B4 -> 0 | D3: =IF(C3=0,"Veuillez entrer le numero de club",VLOOKUP(C3,Clubs!A1:B70,2,0)) -> Veuillez entrer le numero de club | G3: =Menu!B7 -> 2024
B4: SECTEUR : | C4: =IF(C3="","",VLOOKUP(C3,[2]Clubs!A1:C72,3,0)) -> 
A6: CRÉATION RENOUVELLEMENT DUPLICATA MUTATION
A7: Civilité : M F Nationalité : Française Union Européenne Etrangère
A8: Nom de naissance: | E8: Nom d'usage :
A9: Prénom de naissance: | E9: Prénom d'usage:
A10: Date de naissance : | D10: Lieu de naissance: | F10: INSEE:
A11: Adresse:
A12: Code Postal: | C12: Ville:
A13: Courriel: | F13: Téléphone :
A15: N° de licence (si existant):
A16: CLASSIFICATION
A17: ÉLITE HONNEUR PROMOTION NON CLASSÉ
B19: Titulaire d'une carte MOBILITE INCLUSION pour les personnes en situation d'handicap
A20: Je fournis une PHOTO D'IDENTITÉ et j'accepte d'être photographié pour que ma photo soit téléchargée sur le logiciel fédéral de gestion des licences.
A22: Le demandeur est susceptible de recevoir des offres commerciales de partenaires commerciaux de la F.F.P.J.P. Si vous ne le souhaitez pas, Cochez cette case
A24: ENCADRANTS et/ou DIRIGEANTS | C24: ENCADRANTS et/ou DIRIGEANTS
A25: Je suis initiateur, Educateur ou Dirigeant (Président, Secrétaire Générale, Trésorier Général de club ou de Comité).La licence que je sollicite me permet d'accéder aux fonctions d'éducateur sportif et/ou de dirigeant d'Etablissement d'Activités Physiques et Sportives au sens des articles L; 212-1 et L. 322-1 du code du sport. A ce titre, les éléments constitutifs de mon identité seront transmis par la fédération aux services de l'Etat afin qu'un contrôle automatisé de mon honorabilité au sens de l'article L. 212-9 du code du sport soit effectué. J'ai compris et j'accepte ce contrôle.
A26: Je refuse ce contôle et confirme mon intention de ne plus exercer les fonctions d'initiateur, d'éducateur et/ou de dirigeant
A27: ENCADRANTS et/ou DIRIGEANTS | C27: CERTIFICAT MÉDICAL
A28: • Pour les majeurs : plus de certificat médical
A29: • Pour les mineurs : renseigner le questionnaire de santé et avoir répondu par la négative à l'ensemble des rubriques. (A défaut, fournir un certicat de moins de 6 mois).
A30: ENCADRANTS et/ou DIRIGEANTS | C30: AUTORISATION PARENTALE
A31: Je soussignée, | F31: père/mère/tuteur légal, autorise le
A32: bénéficiaire de cette demande, identifié ci-dessus, à pratiquer la pétanque et le jeu provençal au sein de l'association.
A33: Personne à contacter en cas d'accident : | D33: Nom : | F33: Tél :
A34: ENCADRANTS et/ou DIRIGEANTS | C34: ATTESTATION SUR L'HONNEUR
A35: Je soussigné(e), certifie sur l'honneur l'exactitude des renseignements ci-dessus et atteste:
A36: Avoir été informé(e) qu'avec la licence, j'adhère simultanément au contrat collectif d'assurance souscrit auprès de MMA Assurances, par la F.F.P.J.P., conformément à l'article L. 312-1 du Code du Sport, des garanties et de l'intérêt que présente la souscription d'un contrat de personnes couvrant les dommages corporels (non obligatoire).Nb: le coût de cette assurance non obligatoire accordée en base dans la licence est de 0.35€.
A37: Si je ne souhaite pas cette assurance de personnes, cochez cette case.
A38: Avoir été informé(e) de l'intérêt de souscrire les garanties complémentaires optionnelles, accidents correspondant à l'option «avantage» de la compagnie d'assurance, M.M.A conforément à l'article L.321-4 du code du sport
A39: Avoir été informé(e) de l'existence de garanties relatives à l'accompagnement juridique et psychologiques ainsi qu'à la prise en charge des frais de procédures engagés par les victimes de violences sexuelles, physique et psychologiques
C40: SIGNATURE DU JOUEUR/JOUEUSE ou du REPRESENTANT LEGAL
A42: Les données personnelles figurant sur ce documentfont l'objet de traitements informatiques aux fin de traitement de gestion des licences. Vu le Règlement UE2016/679, la directive (UE) 2016/680, la loi de n°78-17 modifiée et le décret n°2019-536 relatif à la protection des données personnelles, vous avez le droit Pour toutes ces demandes, contactez votre club ou écrivez-nous à: sve@petanque.fr inexactes et de faire bloquer, effacer ou détruire des données , selon les circonstances et sous conditions, de vous opposer au traitement de vos inexactes et de faire bloquer, effacer ou détruire des données , selon les circonstances et sous conditions, de vous opposer au traitement de vos d'accéder et de demander une copie des données traitées vous concernant, de faire rectifier des données

Sheet QUESTIONNAIRE DE SANTE MINEUR

Sheet DOCUMENT UNIQUE LICENCE
B1: Fédération Française de Pétanque et de Jeu Provençal | J1: =IF(ISERROR(VLOOKUP(K2,'[3]Base de Données'!$B$4:$DZ$206,106,FALSE)),"",VLOOKUP(K2,'[3]Base de Données'!$B$4:$DZ$206,106,FALSE)) ->  | K1: =YEAR(M1) -> 2023 | M1: =TODAY() -> 2023-11-28 | N1: 0 | O1: =DATE(K1,10,1) -> 2023-10-01 | P1: =K1+1 -> 2024 | Q1: =DATE(P1,1,1) -> 2024-01-01 | S1: =IF(ISERROR(VLOOKUP($K$2,#REF!,32,FALSE)),"",VLOOKUP($K$2,#REF!,32,FALSE)) ->  | Y1: 1
C2: COMITÉ DÉPARTEMENTAL de Maine et Loire | I2: SAISON | K2: =Z8 -> DOCUMENT UNIQUE LICENCE | M2: =IF(ISERROR(LEFT($N$4,2)),"0",LEFT($N$4,2)) ->  | N2: =LEFT($N$4,2) ->  | O2: =M2 ->  | Y2: 2
C3: CLUB : | D3: =IF(AL2<>"",$AL$2,Menu!B4) -> 0 | E3: =IF(AB3=0,"",UPPER(AB3)) ->  | I3: =IF(AL3<>"",AL3,Menu!B7) -> 2024 | M3: =LEFT($N$4,4) ->  | N3: =LEFT($N$4,4) ->  | O3: =RIGHT(M3,2) ->  | Y3: 3 | AB3: =IF(ISERROR(VLOOKUP(D3,[4]Clubs!$C$3:$E$74,2,FALSE)),"",VLOOKUP(D3,[4]Clubs!$C$3:$E$74,2,FALSE)) -> 0
C4: SECTEUR : | D4: =IF(D3="","",IF(ISERROR(VLOOKUP(D3,[2]Clubs!A1:C72,3,0)),"",VLOOKUP(D3,[2]Clubs!A1:C72,3,0))) ->  | M4: =LEFT($N$4,6) ->  | N4: =IF($AL$16<>"",AL16,IF(ISERROR(VLOOKUP($K$2,[4]Catégories!$B$4:$CW$206,13,FALSE)),"",VLOOKUP($K$2,[4]Catégories!$B$4:$CW$206,13,FALSE))) ->  | O4: =RIGHT(M4,2) ->  | Y4: 4
M5: =LEFT($N$4,8) ->  | N5: =IF($AL$15<>"",$AL$15,IF(ISERROR(VLOOKUP($K$2,[4]Catégories!$B$4:$CW$206,12,FALSE)),"",VLOOKUP($K$2,[4]Catégories!$B$4:$CW$206,12,FALSE))) ->  | O5: =RIGHT(M5,2) ->  | Y5: 5 | AJ5: NOM de NAISSANCE | AK5: 2
B6: RENOUVELLEMENT DE LICENCE | N6: =IF($AL$11<>"",$AL$11,IF(ISERROR(VLOOKUP($K$2,[4]Catégories!$B$4:$CW$206,9,FALSE)),"",VLOOKUP($K$2,[4]Catégories!$B$4:$CW$206,9,FALSE))) ->  | Y6: 6 | AJ6: NOM d'USAGE | AK6: 3
B7: ="Civilité : " -> Civilité : | E7: ="Nationalité :" -> Nationalité : | O7: =RIGHT(N4,2) ->  | Y7: 7 | AJ7: PRÉNOM de NAISSANCE | AK7: 4
B8: =IF(AL5<>"","Nom de Naissance : "&AL5,IF(N18="0","Nom de Naissance : ","Nom de Naissance : "&N18)) -> Nom de Naissance : | F8: =IF(AL6<>"","Nom d'usage : "&AL6,IF(N19="0","Nom d'usage: ","Nom d'usage: "&N19)) -> Nom d'usage: | N8: =IF(AL9<>"",AL9,IF(ISERROR(VLOOKUP($K$2,[4]Catégories!$B$4:$CW$206,6,FALSE)),"",VLOOKUP($K$2,[4]Catégories!$B$4:$CW$206,6,FALSE))) ->  | Y8: 8 | Z8: =RIGHT(CELL("nomfichier",$A$1),LEN(CELL("nomfichier",$A$1))-FIND("]",CELL("nomfichier",$A$1))) -> DOCUMENT UNIQUE LICENCE | AJ8: PRÉNOM d'USAGE | AK8: 5
B9: =IF(AL7<>"","Prénom de Naissance : "&AL7,IF(N24="0","Prénom de Naissance : ","Prénom de Naissance : "&N24)) -> Prénom de Naissance : | F9: =IF(AL8<>"","Prénom d'usage : "&AL8,IF(N25="0","Prénom d'usage: ","Prénom d'usage: "&N25)) -> Prénom d'usage: | AJ9: DATE de NAISSANCE | AK9: 6
B10: =IF(N13="00","Date de Naissance : ",IF(N10="0","Date de Naissance : ","Date de Naissance : "&N13&" / "&N17&" / "&M15)) -> Date de Naissance : | E10: =IF(AL10<>"","Lieu de Naissance : "&AL10,IF(N26=0,"Lieu de Naissance : ","Lieu de Naissance : "&N26)) -> Lieu de Naissance : | I10: =IF(M21="0","N° INSEE : ","N° INSEE : "&M21&" "&M22) -> N° INSEE : | N10: =IF(ISERROR(DAY(N8)),"0",DAY(N8)) -> 0 | Y10: 9 | AJ10: LIEU de NAISSANCE | AK10: 7
B11: =IF(N21=0,"Adresse : ","Adresse : "&N21) -> Adresse : | N11: =LEN(N10) -> 1 | Y11: 10 | AJ11: N° INSEE | AK11: 8
B12: =IF(M18="0","Code Postal : ","Code Postal : "&M18&" "&M19) -> Code Postal : | D12: =IF(AL14<>"","Ville : "&AL14,IF(N23=0,"Ville : ","Ville : "&N23)) -> Ville : | N12: =IF(N11=1,0,"") -> 0 | Y12: 11 | AJ12: ADRESSE | AK12: 9
B13: =IF(M23="","Courriel : ","Courriel : "&M24&" @ "&M26) -> Courriel : | G13: =IF(M2="0","Téléphone : ","Téléphone : "&O2&" "&O3&" "&O4&" "&O5&" "&O7) -> Téléphone : | N13: =N12&N10 -> 00 | S13: E | T13: ÉLITE | V13: CRÉATION DE LICENCE | Y13: 12 | AJ13: CODE POSTAL | AK13: 10
N14: =MONTH(N8) ->  | S14: H | T14: HONNEUR | V14: RENOUVELLEMENT DE LICENCE | Y14: 13 | AJ14: VILLE | AK14: 11
B15: N° de licence (si existant): | D15: =IF(O27="0","",O27&" "&O26) ->  | M15: =YEAR(N8) ->  | N15: =LEN(N14) ->  | S15: P | T15: PROMOTION | V15: DUPLICATA DE LICENCE | Y15: 14 | AJ15: COURRIEL | AK15: 12
D16: CLASSIFICATION | M16: =$Z$8 -> DOCUMENT UNIQUE LICENCE | N16: =IF(N15=1,0,"") ->  | S16: NC | T16: NON CLASSÉ | V16: MUTATION | Y16: 15 | AJ16: TÉLÉPHONE | AK16: 13
N17: =N16&N14 ->  | Y17: 16 | AJ17: N° de LICENCE | AK17: 14
C18: Titulaire d'une carte MOBILITÉ INCLUSION pour les personnes en situation d'handicap. | M18: =IF(ISERROR(LEFT(N22,2)),"0",LEFT(N22,2)) ->  | N18: =IF($AL$5<>"",$AL$5,IF(ISERROR(VLOOKUP($K$2,[4]Catégories!$B$4:$CW$206,$AK$5,FALSE)),"",VLOOKUP($K$2,[4]Catégories!$B$4:$CW$206,$AK$5,FALSE))) ->  | Y18: 17 | AJ18: Responsable Légal | AK18: 15
B19: Je fournis une PHOTO D'IDENTITÉ ou j'accepte d'être photographié pour que ma photo soit téléchargée sur le logiciel fédéral de gestion des licences. | M19: =RIGHT(N22,3) ->  | N19: =IF($AL$6<>"",$AL$6,IF(ISERROR(VLOOKUP($K$2,[4]Catégories!$B$4:$CW$206,$AK$6,FALSE)),"",VLOOKUP($K$2,[4]Catégories!$B$4:$CW$206,$AK$6,FALSE))) ->  | S19: F | T19: FÉMININ | Y19: 18 | AJ19: Contact | AK19: 16
M21: =IF(ISERROR(LEFT(N6,2)),"0",LEFT(N6,2)) ->  | N21: =IF($AL$12<>"",$AL$12,IF(ISERROR(VLOOKUP($K$2,[4]Catégories!$B$4:$CW$206,12,FALSE)),"",VLOOKUP($K$2,[4]Catégories!$B$4:$CW$206,12,FALSE))) ->  | S21: M | T21: MASCULIN | Y21: 19 | AL21: N° INSEE
B22: Le demandeur est susceptible de recevoir des offres commerciales de partenaires commerciaux de la F.F.P.J.P. Si vous ne le souhaitez pas, Cochez cette case | M22: =RIGHT(N6,3) ->  | N22: =IF(AL13<>"",$AL$13,IF(ISERROR(VLOOKUP($K$2,[4]Catégories!$B$4:$CW$206,10,FALSE)),"",VLOOKUP($K$2,[4]Catégories!$B$4:$CW$206,10,FALSE))) ->  | Y22: 20
M23: =IF(ISERROR(SEARCH("@",N5)),"",SEARCH("@",N5)) ->  | N23: =IF(AL14<>"",$AL$13,IF(ISERROR(VLOOKUP($K$2,[4]Catégories!$B$4:$CW$206,11,FALSE)),"",VLOOKUP($K$2,[4]Catégories!$B$4:$CW$206,11,FALSE))) ->  | O23: =IF(N23=0,"",N23) ->  | Y23: 21
B24: ENCADRANTS et/ou DIRIGEANTS | D24: ENCADRANTS et/ou DIRIGEANTS | M24: =LEFT(N5,M23-1) ->  | N24: =IF($AL$7<>"",$AL$7,IF(ISERROR(VLOOKUP($K$2,[4]Catégories!$B$4:$CW$206,$AK$7,FALSE)),"",VLOOKUP($K$2,[4]Catégories!$B$4:$CW$206,$AK$7,FALSE))) ->  | S24: F | T24: FRANÇAISE | Y24: 22
B25: Je suis initiateur, Educateur, Arbitre ou Dirigeant (Président, Secrétaire Générale, Trésorier Général de club ou de Comité).La licence que je sollicite me permet d'accéder aux fonctions d'éducateur sportif et/ou de dirigeant d'Etablissement d'Activités Physiques et Sportives au sens des articles L; 212-1 ET l. 322-1 du code du sport. A ce titre, les éléments constitutifs de mon identité seront transmis par la fédération aux services de l'Etat afin qu'un contrôle automatisé de mon honorabilité au sens de l'article L. 212-9 du code du sport soit effectué. J'ai compris et j'accepte ce contrôle. | M25: =LEN(N5) -> 0 | N25: =IF($AL$8<>"",$AL$8,IF(ISERROR(VLOOKUP($K$2,[4]Catégories!$B$4:$CW$206,$AK$8,FALSE)),"",VLOOKUP($K$2,[4]Catégories!$B$4:$CW$206,$AK$8,FALSE))) ->  | S25: UE | T25: UNION EUROPÉENNE | Y25: 23
B26: Je refuse ce contrôle et confirme mon intention de ne plus exercer les fonctions d'initiateur, d'éducateur et/ou de dirigeant | M26: =RIGHT(N5,M25-M23) ->  | N26: =IF($AL$7<>"",$AL$7,IF(ISERROR(VLOOKUP($K$2,[4]Catégories!$B$4:$CW$206,7,FALSE)),"",VLOOKUP($K$2,[4]Catégories!$B$4:$CW$206,7,FALSE))) ->  | O26: =RIGHT(N27,5) ->  | S26: ÉT | T26: ÉTRANGÈRE | Y26: 24
B27: ENCADRANTS et/ou DIRIGEANTS | D27: CERTIFICAT MÉDICAL | M27: =IF(N28=0,"",LEFT(N28,1)) ->  | N27: =IF($AL$17<>"",$AL$17,IF(ISERROR(VLOOKUP($K$2,[4]Catégories!$B$4:$CW$206,14,FALSE)),"",VLOOKUP($K$2,[4]Catégories!$B$4:$CW$206,14,FALSE))) ->  | O27: =IF(ISERROR(LEFT(N27,3)),"0",LEFT(N27,3)) ->  | Y27: 25
B28: • Pour les Majeurs : plus de certificat médical. | M28: =RIGHT(N28,O28-1) ->  | N28: =IF($AL$18<>"",$AL$18,IF(ISERROR(VLOOKUP($K$2,[4]Catégories!$B$4:$CW$206,15,FALSE)),"",VLOOKUP($K$2,[4]Catégories!$B$4:$CW$206,15,FALSE))) ->  | O28: =LEN(N28) -> 0 | Y28: 26
M29: =LEFT($N$29,2) ->  | N29: =IF($AL$19<>"",$AL$19,IF(ISERROR(VLOOKUP($K$2,[4]Catégories!$B$4:$CW$206,16,FALSE)),"",VLOOKUP($K$2,[4]Catégories!$B$4:$CW$206,16,FALSE))) ->  | O29: =IF(N28=0,"",LOWER(M28)) ->  | Y29: 27
B30: • Pour les mineurs : renseigner le questionnaire de santé et avoir répondu par la négative à l'ensemble des rubriques. (A défaut, fournir un certicat de moinsde 6 mois). | M30: =LEFT($N$29,4) ->  | N30: =RIGHT(M30,2) ->  | Y30: 28
B31: ENCADRANTS et/ou DIRIGEANTS | D31: AUTORISATION PARENTALE | M31: =LEFT($N$29,6) ->  | N31: =RIGHT(M31,2) ->  | Y31: 29
B32: =IF(N28=0,"Je soussigné, ","Je soussigné, "&N28) -> Je soussigné, | G32: père / mère / tuteur légal, autorise le | M32: =LEFT($N$29,8) ->  | N32: =RIGHT(M32,2) ->  | Y32: 30
B33: bénéficiaire de cette demande, identifié ci-dessus, à pratiquer la pétanque et le jeu provençal au sein de l'association. | N33: =RIGHT(N29,2) ->  | Y33: 31
B34: Personne à contacter en cas d'accident : | E34: =IF(N28=0,"Nom : ","Nom : "&N28) -> Nom : | H34: =IF(N29=0,"Tél : ","Tél : "&M29&" "&N30&" "&N31&" "&N32&" "&N33) -> Tél : | Y34: 32
B35: ENCADRANTS et/ou DIRIGEANTS | D35: ATTESTATION SUR L'HONNEUR | Y35: 33
B36: Je soussigné(e), certifie sur l'honneur l'exactitude des renseignements ci-dessus et atteste: | Y36: 34
B37: Avoir été informé(e) qu'avec la licence, j'adhère simultanément au contrat collectif d'assurance souscrit auprès de MMA Assurances, par la F.F.P.J.P., conformément à l'article L. 312-1 du Code du Sport, des garanties et de l'intérêt que présente la souscription d'un contrat de personnes couvrant les dommages corporels (non obligatoire).Nb: le coût de cette assurance non obligatoire accordée en base dans la licence est de 0.35€. | Y37: 35
B38: Si je ne souhaite pas souscrire cette assurance de personnes, cochez cette case. | Y38: 36
B39: Avoir été informé(e) de l'intérêt de souscrire les garanties complémentaires optionnelles, accidents correspondant à l'option «avantage» de la compagnie d'assurance, M.M.A conformément à l'article L.312-4 du code du sport | Y39: 37
B40: Avoir été informé(e) de l'existence de garanties relatives à l'accompagnement juridique et et psychologique ainsi qu'à la prise en charge des frais de procédures engagés par les victimes de violences sexuelles, physique et psychologique | Y40: 38
D41: SIGNATURE DU JOUEUR / JOUEUSE ou du REPRÉSENTANT LÉGAL | AA41: =M16 -> DOCUMENT UNIQUE LICENCE
Y42: 39
B43: Les données personnelles figurant sur ce documentfont l'objet de traitements informatiques aux fin de traitement de gestion des licences. Vu le Règlement UE2016/679, la directive (UE) 2016/680, la loi de n°78-17 modifiée et le décret n°2019-536 relatif à la protection des données personnelles, vous avez le droit Pour toutes ces demandes, contactez votre club ou écrivez-nous à: sve@petanque.fr inexactes et de faire bloquer, effacer ou détruire des données , selon les circonstances et sous conditions, de vous opposer au traitement de vos inexactes et de faire bloquer, effacer ou détruire des données , selon les circonstances et sous conditions, de vous opposer au traitement de vos d'accéder et de demander une copie des données traitées vous concernant, de faire rectifier des données. | Y43: 40
Y44: 41
Y45: 42
Y46: 43
Y47: 44
Y48: 45
Y49: 46
Y50: 47
Y51: 48
Y52: 49
Y53: 50
Y54: 51
Y55: 52
U56: 1 | Y56: 53
Y57: 54
Y58: 55
Y59: 56
Y60: 57
Y61: 58
Y62: 59
Y63: 60
Y64: 61
Y65: 62
Y66: 63
Y67: 64
Y68: 65
Y69: 66
Y70: 67
Y71: 68
Y72: 69
Y73: 70
Y74: 71
Y75: 72
Y76: 73
Y77: 74
Y78: 75
Y79: 76
Y80: 77
Y81: 78
Y82: 79
Y83: 80
Y84: 81
Y85: 82
Y86: 83
Y87: 84
Y88: 85
Y89: 86
Y90: 87
Y91: 88
Y92: 89
Y93: 90
Y94: 91
Y95: 92
Y96: 93
Y97: 94
Y98: 95
Y99: 96
Y100: 97
Y101: 98
Y102: 99
Y103: 100
Y104: 101
Y105: 102
Y106: 103
Y107: 104
Y108: 105
Y109: 106
Y110: 107
Y111: 108
Y112: 109
Y113: 110
Y114: 111
Y115: 112
Y116: 113
Y117: 114
Y118: 115
Y119: 116
Y120: 117
Y121: 118
Y122: 119
Y123: 120
Y124: 121
Y125: 122
Y126: 123
Y127: 124
Y128: 125
Y129: 126
Y130: 127
Y131: 128
Y132: 129
Y133: 130
Y134: 131
Y135: 132
Y136: 133
Y137: 134
Y138: 135
Y139: 136
Y140: 137
Y141: 138
Y142: 139
Y143: 140
Y144: 141
Y145: 142
Y146: 143
Y147: 144
Y148: 145
Y149: 146
Y150: 147
Y151: 148
Y152: 149
Y153: 150
Y154: 151
Y155: 152
Y156: 153
Y157: 154
Y158: 155
Y159: 156
Y160: 157
Y161: 158
Y162: 159
Y163: 160
Y164: 161
Y165: 162
Y166: 163
Y167: 164
Y168: 165
Y169: 166
Y170: 167
Y171: 168
Y172: 169
Y173: 170
Y174: 171
Y175: 172
Y176: 173
Y177: 174
Y178: 175
Y179: 176
Y180: 177
Y181: 178
Y182: 179
Y183: 180
Y184: 181
Y185: 182
Y186: 183
Y187: 184
Y188: 185
Y189: 186
Y190: 187
Y191: 188
Y192: 189
Y193: 190
Y194: 191
Y195: 192
Y196: 193
Y197: 194
Y198: 195
Y199: 196
Y200: 197
Y201: 198
... 157 more rows

Sheet Vérification des Licences
A1: =IF(Menu!$B$7="","",Menu!$B$7) -> 2024 | U1: Année | V1: Benjamin | W1: Minime | Z1: Cadet | AC1: Juniors | AF1: Séniors | AH1: Vétérans
U2: =Menu!B7 -> 2024 | V2: =VLOOKUP($U$2,cat,2,0) -> 2015 | W2: =VLOOKUP($U$2,cat,3,0) -> 2013 | X2: =VLOOKUP($U$2,cat,4,0) -> 2014 | Y2: =VLOOKUP($U$2,cat,5,0) -> 2015 | Z2: =VLOOKUP($U$2,cat,6,0) -> 2010 | AA2: =VLOOKUP($U$2,cat,7,0) -> 2011 | AB2: =VLOOKUP($U$2,cat,8,0) -> 2012 | AC2: =VLOOKUP($U$2,cat,9,0) -> 2007 | AD2: =VLOOKUP($U$2,cat,10,0) -> 2008 | AE2: =VLOOKUP($U$2,cat,11,0) -> 2009 | AF2: =VLOOKUP($U$2,cat,12,0) -> 1965 | AG2: =VLOOKUP($U$2,cat,13,0) -> 2006 | AH2: =VLOOKUP($U$2,cat,14,0) -> 1964
A3: F.F.P.J.P | C3: ="VÉRIFICATION DES LICENCES "&Menu!B7 -> VÉRIFICATION DES LICENCES 2024 | O3: CD49
A5: dans la case jaune mettre la nouvelle date du certificat
A7: Pour toutes les mutations joindre la feuille rose
M9: Cachet et signature
A10: Le Président……………………………….certifie exactes les informations figurant sur ce bordereau et que tous les adhérents ont pris connaissance de l'intérêt de sourcrire aux garanties optionnelles,accidents corporels,correspondant à l'option "avantage" de la compagnie M.M.A à l'article L.321-4 du code du sport. Que les informations recueillies figurant sur ce formulaire sont exactes et autorise à ce qu'elles fassent l'objet d'un traitement informatique, conformément à la loi du 06/01/1978Je bénéficie d'un droit d'accès et de rectification auprès du siège de la F.F.P.J.P
A11: DATE
A13: N° de CLUB | B13: =Menu!$B$4 -> 0 | C13: CLUB | D13: =IF(B13=0,"Veuillez renseigner le numéro de Club",VLOOKUP(B13,Clubs!A1:B72,2,0)) -> Veuillez renseigner le numéro de Club
A15: NOM | B15: Prénom | C15: Né le | D15: A | E15: B | F15: C | G15: D | H15: N° licence | I15: N°Club | J15: Adresse | K15: v | L15: CP | M15: Ville | N15: E | O15: certificat | P15: Dern Ann | Q15: F | R15: G | S15: H | V15: Année de Naissance | W15: Catégorie
V16: =IF(C16="","",YEAR(C16)) ->  | W16: =IF(V16="","",IF(V16>=$V$2,"Benjamin",IF((V16>=$W$2)*OR(V16<=$Y$2),"Minime",IF((V16>=$Z$2)*OR(V16<=$AB$2),"Cadet",IF((V16>=$AC$2)*OR(V16<=$AE$2),"Junior",IF((V16>=$AF$2)*OR(V16<=$AG$2),"Senior",IF(V16<=$AH$2,"Veteran",0))))))) ->  | X16: =E16 -> 0 | Y16: =W16&" - "&X16 -> - 0
W17: =IF(V17="","",IF(V17>=$V$2,"Benjamin",IF((V17>=$W$2)*OR(V17<=$Y$2),"Minime",IF((V17>=$Z$2)*OR(V17<=$AB$2),"Cadet",IF((V17>=$AC$2)*OR(V17<=$AE$2),"Junior",IF((V17>=$AF$2)*OR(V17<=$AG$2),"Senior",IF(V17<=$AH$2,"Veteran",0))))))) ->  | X17: 0 | Y17: - 0
X18: 0 | Y18: - 0
X19: 0 | Y19: - 0
X20: 0 | Y20: - 0
X21: 0 | Y21: - 0
X22: 0 | Y22: - 0
X23: 0 | Y23: - 0
X24: 0 | Y24: - 0
X25: 0 | Y25: - 0
X26: 0 | Y26: - 0
X27: 0 | Y27: - 0
X28: 0 | Y28: - 0
X29: 0 | Y29: - 0
X30: 0 | Y30: - 0
X31: 0 | Y31: - 0
X32: 0 | Y32: - 0
X33: 0 | Y33: - 0
X34: 0 | Y34: - 0
X35: 0 | Y35: - 0
X36: 0 | Y36: - 0
X37: 0 | Y37: - 0
X38: 0 | Y38: - 0
X39: 0 | Y39: - 0
X40: 0 | Y40: - 0
X41: 0 | Y41: - 0
X42: 0 | Y42: - 0
X43: 0 | Y43: - 0
X44: 0 | Y44: - 0
X45: 0 | Y45: - 0
X46: 0 | Y46: - 0
X47: 0 | Y47: - 0
X48: 0 | Y48: - 0
X49: 0 | Y49: - 0
X50: 0 | Y50: - 0
X51: 0 | Y51: - 0
X52: 0 | Y52: - 0
X53: 0 | Y53: - 0
X54: 0 | Y54: - 0
X55: 0 | Y55: - 0
X56: 0 | Y56: - 0
X57: 0 | Y57: - 0
X58: 0 | Y58: - 0
X59: 0 | Y59: - 0
V60: =IF(C60="","",YEAR(C60)) ->  | X60: 0 | Y60: - 0
X61: 0 | Y61: - 0
X62: 0 | Y62: - 0
X63: 0 | Y63: - 0
X64: 0 | Y64: - 0
X65: 0 | Y65: - 0
X66: 0 | Y66: - 0
X67: 0 | Y67: - 0
X68: 0 | Y68: - 0
X69: 0 | Y69: - 0
X70: 0 | Y70: - 0
X71: 0 | Y71: - 0
X72: 0 | Y72: - 0
X73: 0 | Y73: - 0
X74: 0 | Y74: - 0
X75: 0 | Y75: - 0
X76: 0 | Y76: - 0
X77: 0 | Y77: - 0
V78: =IF(C78="","",YEAR(C78)) ->  | X78: 0 | Y78: - 0
X79: =E79 -> 0 | Y79: =W79&" - "&X79 -> - 0
X80: 0 | Y80: - 0
W81: =IF(V81="","",IF(V81>=$V$2,"Benjamin",IF((V81>=$W$2)*OR(V81<=$Y$2),"Minime",IF((V81>=$Z$2)*OR(V81<=$AB$2),"Cadet",IF((V81>=$AC$2)*OR(V81<=$AE$2),"Junior",IF((V81>=$AF$2)*OR(V81<=$AG$2),"Senior",IF(V81<=$AH$2,"Veteran",0))))))) ->  | X81: 0 | Y81: - 0
X82: 0 | Y82: - 0
X83: 0 | Y83: - 0
X84: 0 | Y84: - 0
X85: 0 | Y85: - 0
X86: 0 | Y86: - 0
X87: 0 | Y87: - 0
X88: 0 | Y88: - 0
X89: 0 | Y89: - 0
X90: 0 | Y90: - 0
X91: 0 | Y91: - 0
X92: 0 | Y92: - 0
X93: 0 | Y93: - 0
X94: 0 | Y94: - 0
X95: 0 | Y95: - 0
X96: 0 | Y96: - 0
X97: 0 | Y97: - 0
A99: Veteran - M | B99: =COUNTIF($Y$16:$Y$97,A99) -> 0
A100: Veteran - F | B100: =COUNTIF($Y$16:$Y$97,A100) -> 0
A101: Senior - M | B101: =COUNTIF($Y$16:$Y$97,A101) -> 0
A102: Senior - F | B102: 0
A103: Junior - M | B103: 0
A104: Junior - F | B104: 0
A105: Cadet - M | B105: 0
A106: Cadet - F | B106: 0
A107: Minime - M | B107: 0
A108: Minime - F | B108: 0
A109: Benjamin - M | B109: 0
A110: Benjamin - F | B110: 0
A111: TOTAL | B111: =SUM(B99:B110) -> 0

Sheet Feuille Comptable
B1: FÉDÉRATION FRANCAISE DE PÉTANQUE ET DE JEU PROVENÇAL
B2: COMITÉ DE MAINE ET LOIRE
C3: FEUILLE COMPTABLE 2024
C4: 2023-10-24
C5: Il est obligatoire que ce document soit rempli informatiquement, et doit être joint impérativement à chaque demande de licences
B7: CLUB | C7: =IF(I7=0,"",VLOOKUP(I7,Clubs!A1:B72,2,0)) ->  | H7: N° | I7: =Menu!$B$4 -> 0
B9: année | C9: CATEGORIE | D9: NOMBRE | E9: PRIX UNITAIRE | F9: TOTAL | H9: Réservé Comité
B10: 1964 et avant | C10: VETERANS MASCULINS | E10: 34 | F10: =E10*D10 -> 0 | H10: Date d'arrivée au comité
C11: VETERANS FEMININES | E11: 34 | F11: =E11*D11 -> 0
B12: 1965 à 2006 | C12: SENIORS MASCULINS | E12: 34 | F12: 0 | H12: Controlé par :
C13: SENIORS FEMININES | E13: 34 | F13: 0
B14: 2007 à 2009 | C14: JUNIORS MASCULINS | E14: 24 | F14: 0 | H14: Date
C15: JUNIORS FEMININES | E15: 24 | F15: 0 | H15: Traité par :
B16: 2010 à 2012 | C16: CADETS MASCULINS | E16: 17 | F16: 0
C17: CADETS FEMININES | E17: 17 | F17: 0 | H17: Date
B18: 2013 à 2015 | C18: MINIMES MASCULINS | E18: 17 | F18: 0 | H18: Réception des Licences
C19: MINIMES FEMININES | E19: 17 | F19: 0 | H19: Date
B20: 2016 et apres | C20: BENJAMINS MASCULINS | E20: 12 | F20: 0 | H20: Avisé club date
C21: BENJAMINS FEMININES | E21: 12 | F21: 0 | H21: Mise à Jour
B22: TOTAL LICENCE (S) | D22: =SUM(D10:D21) -> 0 | F22: =SUM(F10:F21) -> 0 | H22: Réception
B23: DEMANDE DE DUPLICATA | D23: NOMBRE | E23: PRIX UNITAIRE | F23: TOTAL
B24: TOUTES CATÉGORIES | E24: 6 | F24: =E24*D24 -> 0
B25: TOTAL | D25: =D22 -> 0 | F25: =SUM(F22+F24) -> 0
E27: Montant à régler | H27: =F22+F24 -> 0
C29: MODE DE REGLEMENT
C30: CHÈQUE | D30: VIREMENT | F30: ESPÈCE
C33: DATE D'ENVOI DU CLUB: | F33: Visa du Club
C35: DATE RECEPTION COMITE | F35: visa du Comité
C37: RETRAIT DES LICENCES AU COMITÉ | E37: OUI | F37: NON
A39: FFPJP - CD 49 - 135 Rue Saumuroise - Tel : 02 41 66 86 82

Sheet Demande de Duplicata (hidden)
A1: Fédération Française de Pétanque et Jeu Provençal
A2: Région des Pays de la Loire - Comité de Maine et Loire
A4: DEMANDE DE DUPLICATA
B6: ATTESTATION
A8: Club | B8: =IF(G8=0,"",VLOOKUP(G8,Clubs!A1:B72,2,0)) ->  | F8: N° | G8: =Menu!$B$4 -> 0
A10: N° licence | G10: réservé Comité
A12: NOM | D12: prénom | G12: Vétérans 20 €
A14: date de naissance | G14: Séniors 20 €
A16: adresse | G16: Juniors12 €
A18: code postal | C18: Ville | G18: Cadets 8.00€
A20: Catégorie | G20: Minimes 8.00€
A22: fait à | E22: le | G22: Benjamins 8.00€
B24: Signature du joueur ou du président | F24: N° Chèque
F25: Espèces | G25: OUI NON

Sheet DUPLICATA EN COURS D'ANNEE
A1: Fédération Française de Pétanque et Jeu Provençal
A2: Région des Pays de la Loire - Comité de Maine et Loire
A4: DEMANDE DE DUPLICATA
B6: ATTESTATION
A8: Club | B8: =IF(G8=0,"",VLOOKUP(G8,[5]Clubs!A1:B74,2,0)) ->  | F8: N° | G8: =[5]Menu!$B$4 -> 0
A10: N° licence | G10: réservé Comité
A12: NOM | D12: prénom | G12: Vétérans 20 €
A14: date de naissance | G14: Séniors 20 €
A16: adresse | G16: Juniors12 €
A18: code postal | C18: Ville | G18: Cadets 8.00€
A20: Catégorie | G20: Minimes 8.00€
A22: fait à | E22: le | G22: Benjamins 8.00€
B24: Signature du joueur ou du président | F24: N° Chèque
F25: Espèces | G25: OUI NON

Sheet Correction d'erreur
B1: Fédération Française de Pétanque et Jeu Provençal
B2: Région des Pays de la Loire - Comité de Maine et Loire
B4: CORRECTION D'ERREUR
B6: LICENCE ACTUELLE | G6: NOUVELLE LICENCE
B8: N° licence | G8: N° licence
B10: NOM | G10: NOM
B12: Prénom | G12: Prénom
B14: Né le | G14: Né le
B16: Club | G16: Club
B18: N° | G18: N°
B20: Catégorie | G20: Catégorie
B22: Classification | G22: Classification
B25: erreur du club | D25: 6 euros | G25: erreur du Comité | I25: à la charge du Comité
A26: Le changement d'adresse en cours de saison n'engage pas une nouvelle licence
B28: chèque N° | G28: Espèces | H28: OUI | I28: NON
B30: signature du Président et et cachet du club

Sheet Feuil1 (hidden)
